bitfinex/quotes_ETHUSD_20250114
["timestamp","ask_amount","ask_price","bid_price","bid_amount"]
[1736886364546,0.7697,3227.8,3227.3,0.62815137]
[1736886364865,3.86782,3227.8,3227.1,3.23721524]
[1736886365167,0.7697,3227.6,3227.2,0.60990631]
[1736886369365,0.7889,3228.0,3227.2,0.60990631]
[1736886369667,0.7889,3228.0,3227.4,3.0984]
[1736886370165,0.7889,3228.0,3227.3,0.8102]
[1736886370566,0.7889,3227.4,3227.1,3.23721524]
[1736886370739,3.88775,3227.0,3226.9,3.23721524]
[1736886370958,1.46999952,3227.0,3226.9,3.23721524]
[1736886371300,1.46999952,3227.0,3226.1,3.23721524]
[1736886371852,4.56891952,3227.0,3226.1,3.23721524]
[1736886372206,4.56891952,3227.0,3225.9,0.61065006]
[1736886372207,3.09914,3226.7,3225.9,0.61065006]
[1736886372352,0.7889,3226.6,3225.9,3.61065006]
[1736886372694,0.7889,3226.6,3226.0,3.0998]
[1736886373289,0.7889,3226.6,3225.9,3.61065006]
[1736886373777,0.7889,3226.9,3226.1,3.09971]
[1736886373977,0.7889,3226.9,3226.3,3.09951]
[1736886374172,0.7889,3226.9,3226.0,0.8102]
[1736886374173,0.195,3227.3,3226.4,3.09942]
[1736886374350,0.7889,3227.2,3226.4,3.09937]
[1736886374549,0.7889,3227.2,3226.5,3.0993]
[1736886375292,0.7889,3227.2,3226.5,3.0]
[1736886375459,3.88719,3227.6,3226.7,3.09905]
[1736886375658,4.295409,3227.6,3226.7,3.09905]
[1736886375866,4.295409,3227.6,3226.7,3.72935114]
[1736886376099,3.88719,3227.6,3226.7,3.72935114]
[1736886377124,3.09838,3227.5,3226.7,0.63030114]
[1736886378186,0.7648,3227.0,3226.0,0.8054]
[1736886378423,0.7648,3227.0,3226.0,1.4111125]
[1736886378736,3.86367,3227.0,3226.2,3.0]
[1736886378938,4.54236152,3227.0,3226.2,3.0]
[1736886379088,1.44349152,3227.0,3226.0,1.4111125]
[1736886379396,3.09935,3226.5,3226.0,0.6057125]
[1736886379595,3.86402,3226.7,3225.4,0.8054]
[1736886379789,3.86402,3226.7,3225.6,3.10013]
[1736886380216,0.7648,3226.7,3225.7,3.72647876]
[1736886380533,3.09924,3226.6,3225.7,3.72647876]
[1736886380822,0.386404,3226.6,3225.8,3.09998]
[1736886380989,0.7648,3226.7,3225.9,3.09984]
[1736886382788,0.7648,3226.7,3226.0,3.09976]
[1736886383340,0.7648,3226.7,3225.9,3.0]
[1736886383940,3.09925,3226.6,3225.7,0.62640876]
[1736886384130,0.7648,3226.7,3225.8,3.09999]
[1736886384335,1.170691,3226.7,3225.9,3.09989]
[1736886384626,3.86394,3226.7,3225.7,3.72644876]
[1736886384836,0.7648,3226.7,3225.7,0.62640876]
[1736886385142,0.7648,3226.4,3225.3,3.10043]
[1736886385458,0.7648,3226.4,3226.0,3.09972]
[1736886388049,0.7648,3226.4,3225.9,0.60943083]
[1736886388228,0.7648,3226.4,3225.6,3.90556]
[1736886388405,0.7648,3226.4,3225.6,0.60918243]
[1736886388406,3.86424,3226.4,3225.6,0.60918243]
[1736886388606,2.92324516,3226.1,3224.9,0.8054]
[1736886388941,3.10022,3225.6,3224.7,3.88465828]
[1736886389142,0.7648,3225.7,3224.8,3.71951925]
[1736886389346,3.10036,3225.5,3224.8,0.61855925]
[1736886389509,0.7648,3225.7,3224.7,3.88465828]
[1736886389510,3.10022,3225.6,3224.7,6.98566828]
[1736886389710,0.7648,3225.4,3224.6,0.8054]
[1736886389944,0.7648,3225.4,3224.2,0.8054]
[1736886390143,3.10049,3225.3,3224.4,3.7148593]
[1736886390349,0.7648,3225.2,3224.4,3.7148593]
[1736886390912,0.7648,3225.2,3224.4,0.6135293]
[1736886391140,0.7648,3225.2,3224.5,3.10123]
[1736886391340,0.7648,3225.2,3224.4,0.6135293]
[1736886391672,0.7648,3224.8,3223.8,6.33908524]
[1736886391977,0.7648,3224.8,3223.8,3.10187]
[1736886391978,0.36880452,3224.7,3223.8,3.10187]
[1736886392477,0.36880452,3224.7,3223.6,0.8054]
[1736886392478,0.36880452,3224.7,3223.9,3.10182]
[1736886392774,0.7648,3224.8,3223.9,3.71947171]
[1736886393079,0.7648,3224.8,3223.9,0.61765171]
[1736886393286,0.7648,3224.8,3224.5,3.10125]
[1736886393447,0.7648,3224.8,3223.9,0.61765171]
[1736886393448,0.7648,3224.8,3224.2,3.10145]
[1736886393641,0.7648,3224.8,3224.3,3.10143]
[1736886394178,0.7648,3224.8,3223.9,6.71946171]
[1736886394372,0.7648,3224.8,3224.0,3.0]
[1736886394594,0.7648,3224.8,3224.5,3.10124]
[1736886394952,0.7648,3225.2,3224.5,3.10124]
[1736886395154,0.7648,3225.2,3224.6,3.10114]
[1736886395451,0.7648,3225.2,3224.7,3.10103]
[1736886395648,0.7648,3225.2,3224.8,3.10096]
[1736886395956,0.7648,3225.2,3224.4,3.7311783]
[1736886396280,0.7648,3225.2,3224.6,3.10112]
[1736886396477,0.7648,3225.2,3224.4,0.6298283]
[1736886396677,0.7648,3225.2,3224.4,3.7310983]
[1736886397067,3.68804516,3225.2,3224.2,3.1015]
[1736886397255,3.46951452,3225.1,3224.2,3.1015]
[1736886397861,0.36880452,3225.1,3223.8,0.8054]
[1736886398212,0.7648,3225.0,3224.1,3.10164]
[1736886399749,0.7648,3225.0,3224.0,0.61286043]
[1736886399941,0.7648,3224.8,3224.0,0.61286043]
[1736886400145,0.7648,3224.5,3223.5,3.8054]
[1736886400356,0.7648,3224.5,3223.7,3.10195]
[1736886400787,0.7648,3224.5,3223.8,3.10191]
[1736886401554,3.10135,3224.4,3223.5,3.10219]
[1736886401748,0.7648,3224.2,3223.3,0.63671632]
[1736886402052,0.7648,3224.2,3223.4,3.10231]
[1736886402253,0.7648,3224.2,3223.3,3.73909632]
[1736886402458,0.7648,3224.2,3223.3,0.63671632]
[1736886402793,0.7648,3224.2,3223.6,3.10211]
[1736886403296,0.7648,3224.2,3223.3,0.63671632]
[1736886403672,0.7648,3224.2,3223.5,3.10221]
[1736886404086,0.7648,3224.2,3223.6,3.1021]
[1736886404283,0.9598,3224.7,3223.6,0.8054]
[1736886404484,0.9598,3224.7,3224.0,0.63224334]
[1736886405077,4.06095,3224.7,3223.9,3.0]
[1736886405283,4.06095,3224.7,3223.9,3.627208]
[1736886405664,3.10116,3224.6,3223.6,0.8054]
[1736886406131,0.7586,3224.5,3223.5,3.0]
[1736886406313,3.10128,3224.5,3223.8,0.62037229]
[1736886406483,0.7586,3224.4,3223.8,0.62037229]
[1736886407714,0.7586,3224.4,3223.9,3.10183]
[1736886407917,0.7586,3224.4,3223.8,0.62037229]
[1736886408269,0.7586,3224.4,3223.8,3.72224229]
[1736886409164,0.7586,3224.4,3223.8,0.62037229]
[1736886409910,0.7586,3224.4,3223.8,3.72229229]
[1736886411152,0.7586,3224.4,3223.8,0.62037229]
[1736886411286,0.7586,3224.4,3223.6,3.10211]
[1736886414023,0.7586,3224.4,3223.3,0.8042]
[1736886414333,0.7586,3224.4,3223.7,3.10199]
[1736886414543,0.7586,3224.4,3224.0,0.60611897]
[1736886414677,0.7586,3224.4,3224.0,3.70782897]
[1736886414881,0.7586,3224.4,3224.0,0.60611897]
[1736886415325,1.5036,3224.9,3224.1,3.10157]
[1736886415684,4.6045,3224.9,3224.0,0.60611897]
[1736886416286,3.10099,3224.8,3224.0,0.60611897]
[1736886416611,3.85967,3224.7,3224.0,0.60611897]
[1736886416913,3.10117,3224.6,3224.0,0.60611897]
[1736886417114,0.385977,3224.5,3224.0,0.60611897]
[1736886417605,0.7586,3224.7,3224.0,0.60611897]
[1736886419597,0.7586,3224.7,3224.0,3.70781897]
[1736886419789,0.7586,3224.7,3224.0,0.60611897]
[1736886420301,0.7586,3225.6,3224.2,3.72744516]
[1736886420503,0.7586,3225.6,3225.1,3.10063]
[1736886420813,0.7586,3225.6,3224.8,3.10088]
[1736886421034,0.7586,3225.6,3224.7,3.70819197]
[1736886421275,0.7586,3225.6,3224.7,3.70818197]
[1736886421276,3.8588,3225.6,3224.7,3.70818197]
[1736886421471,1.144463,3225.6,3224.8,3.10096]
[1736886421624,0.7586,3225.6,3224.8,3.10096]
[1736886422353,6.21800516,3226.1,3224.5,3.0]
[1736886422354,0.7889,3225.3,3224.5,3.10124]
[1736886423350,0.7889,3225.3,3224.6,3.10114]
[1736886423723,0.7889,3225.3,3224.4,6.10131]
[1736886423930,0.7889,3225.3,3224.5,3.10118]
[1736886425859,3.10065,3225.2,3224.3,3.72444882]
[1736886426076,0.7889,3225.1,3224.2,3.22414081]
[1736886426232,0.7889,3225.1,3224.2,3.0]
[1736886426427,3.10115,3224.7,3224.0,0.62819612]
[1736886426660,0.7889,3224.6,3223.8,3.22414081]
[1736886427030,0.7889,3224.6,3223.8,6.32606081]
[1736886427382,0.7889,3224.6,3223.9,3.10182]
[1736886427580,0.7889,3224.6,3223.8,0.61940854]
[1736886427784,0.7889,3224.6,3224.4,3.10131]
[1736886427948,0.7889,3225.2,3224.5,3.10118]
[1736886428127,0.7889,3225.2,3224.6,3.10114]
[1736886428785,0.7889,3225.2,3224.7,3.101]
[1736886429347,0.7889,3225.2,3224.5,3.10119]
[1736886429846,0.7889,3225.2,3224.7,0.61325794]
[1736886430261,0.7889,3225.2,3224.7,3.71430794]
[1736886430760,0.7889,3225.2,3224.7,0.61325794]
[1736886431354,0.7889,3225.2,3224.9,3.10086]
[1736886431553,0.7889,3225.2,3224.7,0.61325794]
[1736886431763,0.7889,3225.2,3224.7,3.71428794]
[1736886433883,0.7889,3225.2,3224.7,0.61325794]
[1736886434043,0.7889,3225.2,3224.6,3.22414081]
[1736886434044,3.88966,3225.1,3224.6,3.22414081]
[1736886434369,3.88966,3225.1,3224.3,3.86896897]
[1736886434370,0.68129052,3225.0,3224.4,3.22414081]
[1736886434774,0.7889,3225.1,3224.4,3.22414081]
[1736886434932,0.7889,3225.1,3224.7,3.10099]
[1736886435135,0.7889,3225.6,3224.8,3.10095]
[1736886436065,3.88912,3225.6,3224.6,3.22414081]
[1736886436372,3.88912,3225.6,3224.7,6.32519081]
[1736886436555,4.58985652,3225.6,3224.7,3.10105]
[1736886436760,4.58985652,3225.6,3224.7,3.70770549]
[1736886437831,3.10033,3225.5,3224.7,0.60665549]
[1736886438032,0.7864,3225.4,3224.6,3.22414081]
[1736886438266,0.7864,3224.9,3224.6,3.22414081]
[1736886438567,0.7864,3224.9,3224.1,6.10162]
[1736886438568,0.7864,3224.9,3224.4,3.22414081]
[1736886438773,0.7864,3224.9,3224.2,3.22414081]
[1736886439374,0.7864,3224.9,3224.3,3.10138]
[1736886439573,0.7864,3224.9,3224.2,3.22414081]
[1736886439873,0.7889,3225.9,3224.4,2.92324516]
[1736886440080,0.7889,3225.7,3224.7,3.10097]
[1736886440386,3.10022,3225.6,3224.7,3.10097]
[1736886440551,0.7889,3225.7,3224.9,3.10086]
[1736886440751,0.7889,3225.7,3224.9,0.8203]
[1736886440950,0.7889,3225.7,3225.1,3.10059]
[1736886442154,0.7889,3225.7,3225.1,0.63425615]
[1736886442360,0.7889,3225.7,3224.9,4.04444081]
[1736886442567,0.7889,3225.7,3225.1,3.10066]
[1736886442888,0.7889,3225.7,3224.9,4.04444081]
[1736886443269,0.7889,3225.7,3224.9,7.14525081]
[1736886443470,0.7889,3225.7,3225.1,3.10058]
[1736886443972,0.7889,3225.7,3224.9,7.14528081]
[1736886444142,1.177781,3225.7,3224.9,3.22414081]
[1736886444348,0.7889,3225.5,3224.8,3.84442246]
[1736886444548,0.7889,3225.5,3224.8,3.72122165]
[1736886447891,0.7889,3225.5,3224.9,3.10085]
[1736886449998,0.7889,3225.5,3224.8,3.86787791]
[1736886450279,0.7889,3225.9,3225.1,3.10063]
[1736886450483,1.197268,3225.9,3225.1,3.10063]
[1736886450684,4.297188,3225.9,3225.0,3.24759626]
[1736886450871,3.10002,3225.8,3224.9,4.06789626]
[1736886451080,3.10002,3225.8,3224.9,3.24759626]
[1736886451382,1.197268,3225.9,3224.8,3.72116165]
[1736886451383,1.197268,3225.9,3224.8,3.86787791]
[1736886451568,0.7889,3225.9,3225.3,3.10048]
[1736886452485,0.7889,3225.9,3225.1,3.24759626]
[1736886452782,0.7889,3225.9,3225.1,3.10067]
[1736886452958,0.7889,3226.5,3225.4,3.0]
[1736886453171,0.7889,3226.5,3225.4,3.03099747]
[1736886453373,0.7889,3226.5,3225.9,3.09983]
[1736886453683,0.7889,3226.5,3225.7,3.10006]
[1736886454072,0.7889,3226.5,3225.6,3.24759626]
[1736886454445,0.7889,3226.5,3225.8,3.09996]
[1736886455064,0.7889,3226.5,3225.6,6.34774626]
[1736886455319,0.388814,3226.4,3225.6,6.34774626]
[1736886456059,0.388814,3226.4,3225.4,9.34796626]
[1736886456060,3.88844,3226.3,3225.4,9.34796626]
[1736886456264,2.92324516,3226.4,3225.4,3.24759626]
[1736886456566,3.71214516,3226.1,3225.3,3.24759626]
[1736886456765,3.09983,3226.0,3225.3,3.24759626]
[1736886457177,3.09983,3226.0,3225.1,6.10063]
[1736886457178,0.7889,3225.9,3225.1,6.10063]
[1736886457376,0.7889,3225.9,3225.3,3.10046]
[1736886457610,0.7889,3225.9,3225.7,3.10006]
[1736886457783,0.7889,3226.6,3225.9,3.09988]
[1736886458099,1.197198,3226.6,3225.9,3.09988]
[1736886458287,1.197198,3226.6,3225.7,3.10006]
[1736886458463,1.197198,3226.6,3225.6,3.24759626]
[1736886458667,1.197198,3226.6,3225.8,3.09991]
[1736886459099,4.296498,3226.6,3225.6,3.10014]
[1736886459274,4.296498,3226.6,3225.5,3.24759626]
[1736886459275,3.8882,3226.6,3225.5,3.24759626]
[1736886459595,0.7889,3226.6,3225.8,3.09998]
[1736886460399,0.7889,3226.6,3225.5,3.0]
[1736886461000,3.88817,3226.6,3225.6,3.10011]
[1736886461302,0.388817,3226.5,3225.7,3.1001]
[1736886461508,0.388817,3226.5,3225.5,3.0]
[1736886461710,3.09952,3226.3,3225.5,3.0]
[1736886462231,3.88832,3226.4,3225.5,3.10023]
[1736886464917,0.7889,3226.4,3225.6,3.10018]
[1736886465122,0.7889,3226.4,3226.1,3.09971]
[1736886465271,0.7889,3226.4,3225.7,3.9513283]
[1736886465272,0.7889,3226.4,3226.2,3.0996]
[1736886465476,3.88776,3227.0,3226.0,3.09972]
[1736886466320,3.88776,3227.0,3226.1,3.09968]
[1736886467467,0.7889,3227.0,3226.4,0.63468405]
[1736886467665,3.88777,3227.0,3226.4,0.63468405]
[1736886467919,3.88777,3227.0,3225.7,4.06585938]
[1736886467920,3.09895,3226.9,3225.9,3.09985]
[1736886468121,3.0992,3226.7,3225.8,3.24555938]
[1736886468422,3.48756,3226.7,3225.8,3.24555938]
[1736886468623,3.48756,3226.7,3225.7,3.92033]
[1736886468624,3.48756,3226.7,3225.7,7.16588938]
[1736886469103,3.48756,3226.7,3225.9,3.0999]
[1736886469104,0.38836,3226.7,3225.9,3.0999]
[1736886469312,0.7844,3226.8,3225.7,4.45448723]
[1736886469471,0.7844,3226.8,3225.9,3.09983]
[1736886469678,0.7844,3226.8,3226.0,3.09974]
[1736886470017,3.88346,3226.8,3225.8,3.09997]
[1736886470569,3.88346,3226.8,3225.7,3.63418723]
[1736886470570,3.70764516,3226.8,3225.7,3.63418723]
[1736886470771,6.02265516,3226.5,3225.7,0.63418723]
[1736886471077,0.7889,3226.4,3225.7,0.63418723]
[1736886471290,3.88835,3226.4,3225.5,6.34583938]
[1736886471496,3.88835,3226.4,3225.5,3.10028]
[1736886472087,0.7889,3226.4,3225.5,3.1002]
[1736886472314,0.68114952,3226.3,3225.6,0.63074615]
[1736886472485,0.7889,3226.4,3225.7,3.10003]
[1736886473423,0.7889,3226.4,3225.6,0.63074615]
[1736886473727,3.88836,3226.4,3225.6,0.63074615]
[1736886474421,3.88836,3226.4,3225.9,3.09984]
[1736886474422,0.7889,3226.4,3225.9,3.09984]
[1736886474788,0.7889,3226.4,3225.7,0.8089]
[1736886474994,0.7889,3227.2,3226.0,2.92324516]
[1736886475188,0.7889,3227.2,3226.1,3.09971]
[1736886475411,0.7889,3227.2,3226.6,3.09916]
[1736886475611,0.7889,3227.2,3226.7,3.09911]
[1736886475813,0.78517265,3227.2,3226.7,3.09912]
[1736886476013,0.78517265,3227.2,3226.7,3.71882973]
[1736886476221,0.194,3227.7,3226.7,0.61970973]
[1736886476409,0.194,3227.7,3226.8,3.09896]
[1736886476607,0.194,3227.7,3226.9,3.09893]
[1736886478331,0.194,3227.7,3227.0,3.09882]
[1736886478635,0.194,3227.7,3226.8,3.09899]
[1736886478808,0.194,3227.7,3227.2,0.62691349]
[1736886479011,0.7852,3227.6,3227.2,0.62691349]
[1736886479732,0.7852,3227.6,3226.8,3.09899]
[1736886480107,0.7852,3227.6,3227.1,0.61685306]
[1736886481252,0.7852,3227.6,3227.1,3.71559306]
[1736886481455,0.7852,3227.6,3227.2,3.09864]
[1736886481662,0.7852,3227.6,3227.1,0.61685306]
[1736886481663,0.7852,3227.6,3227.4,3.09839]
[1736886481820,0.7852,3228.3,3227.3,3.0]
[1736886482151,0.7852,3228.8,3228.0,3.09787]
[1736886482656,0.7852,3228.8,3228.1,3.09779]
[1736886484149,0.7852,3228.8,3228.1,3.09776]
[1736886484354,0.7852,3228.8,3228.1,3.09775]
[1736886484557,0.7852,3229.1,3228.7,3.09722]
[1736886485477,0.7852,3229.1,3228.5,3.72624492]
[1736886485956,0.7852,3229.1,3228.6,3.09729]
[1736886488359,0.7852,3229.1,3228.5,0.62884492]
[1736886488655,0.7852,3229.4,3228.7,0.8166]
[1736886488870,0.7852,3229.4,3228.8,3.09703]
[1736886489070,0.7852,3229.4,3228.9,0.03096659]
[1736886489071,0.0274113,3229.3,3228.9,0.03096659]
[1736886489241,0.0274113,3229.3,3229.2,3.09666]
[1736886489442,0.7852,3229.7,3229.2,3.09666]
[1736886489659,0.02753247,3229.6,3229.2,3.09666]
[1736886489848,0.02753247,3229.6,3229.3,0.03096276]
[1736886490063,0.02753247,3229.6,3229.4,3.09646]
[1736886490258,0.7852,3229.7,3229.4,3.09646]
[1736886490843,0.0275481,3229.6,3229.4,3.09646]
[1736886491143,0.7852,3229.7,3229.3,3.0966]
[1736886491451,0.0275481,3229.6,3229.3,3.0966]
[1736886491853,0.7852,3229.7,3229.2,0.61940914]
[1736886492277,0.02781977,3229.6,3229.2,0.61940914]
[1736886492440,0.7852,3229.7,3228.3,2.92324516]
[1736886492777,0.02781977,3229.6,3229.1,3.09682]
[1736886492971,0.02781977,3229.6,3228.9,0.61661599]
[1736886493367,0.02781977,3229.6,3229.1,3.09679]
[1736886493568,0.7852,3229.7,3229.0,3.0]
[1736886493955,0.02781977,3229.6,3229.0,3.0]
[1736886494251,0.02781977,3229.6,3228.9,0.61661599]
[1736886494583,0.41874075,3229.6,3228.9,0.61661599]
[1736886497112,0.7852,3229.3,3227.8,3.24555938]
[1736886497318,0.7852,3229.1,3228.3,3.09759]
[1736886497813,0.7852,3228.8,3228.0,3.09788]
[1736886498123,3.1247258,3228.7,3228.0,0.61449497]
[1736886498281,0.7852,3228.6,3228.0,0.61449497]
[1736886498474,0.7852,3228.6,3227.6,3.09824]
[1736886498475,1.4685171,3228.6,3227.6,3.09824]
[1736886498673,1.4685171,3228.6,3227.2,2.067364]
[1736886498674,0.7852,3228.3,3227.2,2.067364]
[1736886498890,0.7852,3228.3,3227.3,3.09851]
[1736886499105,0.02735469,3228.2,3227.7,3.71375383]
[1736886499313,0.7852,3228.3,3227.7,3.71375383]
[1736886499487,0.02728365,3228.1,3227.8,3.09806]
[1736886499690,0.7852,3228.3,3227.8,3.09806]
[1736886500177,0.02730496,3228.2,3227.9,3.09796]
[1736886500577,0.7852,3228.3,3227.9,3.09796]
[1736886500874,0.02730496,3228.2,3227.9,3.09796]
[1736886501087,0.7852,3228.3,3227.9,3.09796]
[1736886501314,0.02728365,3228.1,3227.9,3.09796]
[1736886501479,0.7852,3228.3,3227.7,3.61567383]
[1736886502101,0.7852,3228.3,3227.9,3.0979]
[1736886502320,0.7852,3228.3,3227.7,3.61567383]
[1736886502534,2.92324516,3229.1,3228.1,3.09772]
[1736886502535,0.7852,3228.6,3228.1,3.09772]
[1736886502680,0.7852,3228.6,3227.8,0.8264]
[1736886502681,0.02731917,3228.2,3227.8,3.8264]
[1736886502882,0.7852,3228.6,3228.1,3.09779]
[1736886503109,0.7852,3228.6,3228.0,3.0]
[1736886503414,0.0273831,3228.5,3228.0,3.09787]
[1736886504678,0.0273831,3228.5,3227.7,0.61567383]
[1736886504883,0.7852,3228.6,3228.1,3.09776]
[1736886505113,0.02736179,3228.4,3228.2,0.63226878]
[1736886505279,0.0273831,3228.5,3228.2,3.72993878]
[1736886505486,0.02732628,3228.3,3228.2,0.63226878]
[1736886505687,0.7852,3228.6,3228.2,0.63226878]
[1736886506193,0.0273689,3228.5,3228.2,0.63226878]
[1736886506713,0.7852,3228.9,3228.2,0.63226878]
[1736886506925,0.7852,3228.9,3228.5,3.0974]
[1736886507080,0.02728984,3228.8,3228.5,3.0974]
[1736886507282,0.02728984,3228.8,3228.3,3.09752]
[1736886507629,0.02728984,3228.8,3228.4,3.0975]
[1736886508892,0.02728984,3228.8,3228.2,0.63226878]
[1736886509098,0.02728984,3228.8,3228.2,3.72991878]
[1736886510627,0.02728984,3228.8,3228.3,3.0976]
[1736886510833,0.02728984,3228.8,3227.9,0.8264]
[1736886511031,0.02728984,3228.8,3228.1,3.09779]
[1736886512432,0.02728984,3228.8,3228.0,0.60610761]
[1736886512734,0.7852,3228.7,3228.0,1.43250761]
[1736886512939,0.7852,3228.7,3228.4,3.0975]
[1736886513097,0.02714875,3228.6,3228.4,3.0975]
[1736886513297,0.7852,3228.7,3228.2,3.09765]
[1736886513517,0.7852,3228.7,3228.3,3.09757]
[1736886513721,0.02714412,3228.6,3228.3,3.09757]
[1736886514130,0.7852,3228.7,3228.3,3.09757]
[1736886514637,0.02907515,3228.6,3228.3,3.09757]
[1736886515052,0.7852,3228.7,3228.4,3.09743]
[1736886515240,0.7852,3229.5,3228.2,3.0]
[1736886515549,0.02729261,3229.4,3228.7,3.09719]
[1736886516426,0.7852,3229.3,3228.7,3.09719]
[1736886516739,0.7852,3229.3,3228.5,0.61615976]
[1736886516740,0.81244271,3229.2,3228.5,0.61615976]
[1736886517813,0.02724271,3229.2,3228.6,0.8264]
[1736886518044,0.7852,3229.1,3228.5,3.71352976]
[1736886518320,0.7852,3229.1,3228.6,3.09731]
[1736886518632,0.7852,3228.9,3228.5,0.61615976]
[1736886519358,0.02725999,3228.8,3228.5,3.71348976]
[1736886520014,0.7852,3228.9,3228.5,3.71348976]
[1736886520447,0.02722632,3228.8,3228.5,3.71348976]
[1736886520847,0.7852,3228.9,3228.5,3.71348976]
[1736886521054,0.7852,3228.9,3228.5,0.61615976]
[1736886521215,0.02733248,3228.8,3228.5,0.61615976]
[1736886523546,0.7852,3228.9,3228.5,0.61615976]
[1736886523847,0.7852,3228.9,3228.5,3.71348976]
[1736886524248,3.09572,3230.3,3228.5,3.71348976]
[1736886524249,0.7852,3229.7,3228.7,3.0]
[1736886524632,0.7852,3229.7,3229.0,3.09685]
[1736886525238,0.7852,3229.6,3228.8,6.3285204]
[1736886525453,3.09653,3229.5,3228.8,3.2314204]
[1736886525624,0.7852,3229.4,3228.7,3.2314204]
[1736886525820,0.7852,3229.4,3228.7,6.3286404]
[1736886526334,0.7852,3229.4,3228.9,3.09701]
[1736886526922,0.7852,3229.4,3229.1,3.09676]
[1736886527139,0.7852,3229.4,3229.2,3.09672]
[1736886527426,0.7852,3229.4,3229.1,3.2314204]
[1736886527752,0.7852,3229.4,3229.0,3.09688]
[1736886527753,0.7852,3229.4,3229.0,6.3283004]
[1736886528456,0.7852,3229.4,3229.0,3.09688]
[1736886528640,0.7852,3229.4,3228.9,3.2314204]
[1736886529045,0.7852,3229.4,3228.8,3.2314204]
[1736886529240,3.88176,3229.4,3228.8,3.2314204]
[1736886529751,3.88176,3229.4,3228.6,6.95972997]
[1736886530141,0.7852,3229.4,3228.6,6.95972997]
[1736886530554,1.173369,3229.4,3228.6,6.95972997]
[1736886530927,1.173369,3229.4,3228.6,3.72830957]
[1736886531387,0.7852,3229.4,3228.6,3.72830957]
[1736886534241,3.09659,3229.4,3228.6,0.63099957]
[1736886534441,0.7801,3229.2,3228.6,0.63099957]
[1736886536428,2.92324516,3229.3,3228.6,0.63099957]
[1736886536429,0.7801,3229.1,3228.6,0.63099957]
[1736886540363,0.7801,3229.1,3228.6,3.72830957]
[1736886540540,0.7801,3229.1,3228.6,6.95972997]
[1736886541957,0.7801,3229.1,3228.7,3.0972]
[1736886542138,0.7801,3229.1,3228.9,0.2504]
[1736886542865,0.7852,3229.6,3228.9,0.2504]
[1736886543065,0.7852,3229.6,3229.2,3.09671]
[1736886544144,0.7852,3229.6,3229.0,6.3283004]
[1736886545475,0.7852,3229.6,3229.2,0.60703251]
[1736886547073,0.7852,3229.6,3229.0,3.2314204]
[1736886547276,0.7852,3229.6,3228.9,3.4818204]
[1736886547449,1.15604452,3229.6,3228.9,3.4818204]
[1736886547650,0.7852,3229.5,3228.9,3.4818204]
[1736886547855,0.7852,3229.5,3229.0,0.63017233]
[1736886549465,0.7852,3229.5,3229.0,3.86159273]
[1736886551139,0.7852,3229.5,3229.1,3.09681]
[1736886551575,0.7852,3229.5,3229.1,6.3282304]
[1736886552264,0.7852,3229.5,3229.2,3.09672]
[1736886553265,0.7852,3230.0,3229.1,3.9867204]
[1736886553469,0.7852,3230.0,3229.6,3.09629]
[1736886553667,0.7852,3230.4,3229.7,3.09617]
[1736886554582,0.7852,3230.4,3229.9,3.09606]
[1736886555456,0.7852,3230.4,3229.8,3.2314204]
[1736886555661,0.7852,3230.4,3229.7,3.85345401]
[1736886555857,1.174269,3230.4,3229.7,0.62203361]
[1736886556150,4.269889,3230.4,3229.6,3.2314204]
[1736886556351,4.29702849,3230.4,3229.6,3.2314204]
[1736886556692,4.29702849,3230.4,3229.5,6.3278704]
[1736886556851,3.90795949,3230.4,3229.6,3.09634]
[1736886557184,3.90795949,3230.4,3229.8,0.62550796]
[1736886560287,0.7852,3230.1,3229.4,3.2314204]
[1736886560451,2.92324516,3229.9,3229.4,3.2314204]
[1736886560650,2.92324516,3229.9,3229.2,3.2314204]
[1736886560651,0.7852,3229.7,3229.2,3.2314204]
[1736886560978,3.88147,3229.7,3229.2,3.2314204]
[1736886561281,0.7852,3229.7,3228.9,0.2504]
[1736886561580,0.7852,3229.7,3229.0,3.09693]
[1736886561976,0.7852,3229.7,3229.1,3.09677]
[1736886562173,0.7852,3229.7,3229.2,3.09666]
[1736886563388,0.7852,3229.7,3229.4,0.61010178]
[1736886563592,0.9792,3230.0,3229.4,3.70663178]
[1736886564163,0.9792,3230.0,3229.4,0.61010178]
[1736886564568,0.9792,3230.0,3229.5,3.09643]
[1736886564769,0.9792,3230.0,3229.4,3.85617486]
[1736886565088,0.9792,3230.0,3229.4,6.95270486]
[1736886565301,0.9792,3230.0,3229.6,3.09632]
[1736886565302,0.7852,3230.0,3229.6,3.09632]
[1736886565592,0.81232535,3230.0,3229.6,3.09632]
[1736886565898,0.7852,3230.0,3229.4,6.95265486]
[1736886566067,0.81232535,3230.0,3229.4,6.95265486]
[1736886566486,0.7852,3230.0,3229.4,3.70658178]
[1736886566991,0.7852,3230.0,3229.4,0.61010178]
[1736886567177,0.81232535,3230.0,3229.5,3.09643]
[1736886567383,0.7852,3230.0,3229.5,3.09643]
[1736886567690,0.7852,3230.0,3229.4,0.61010178]
[1736886567894,0.81232535,3230.0,3229.4,0.61010178]
[1736886568196,0.7852,3230.0,3229.4,0.61010178]
[1736886568396,0.02714569,3229.9,3229.4,0.61010178]
[1736886570576,0.7852,3230.0,3229.4,0.61010178]
[1736886571701,0.7852,3230.0,3229.4,3.70664178]
[1736886574806,0.7852,3230.4,3229.6,3.09632]
[1736886574983,1.174273,3230.4,3229.6,3.09632]
[1736886575301,1.174273,3230.4,3229.4,0.61010178]
[1736886575302,3.09583,3230.2,3229.4,0.61010178]
[1736886575615,0.7852,3230.1,3229.4,0.61010178]
[1736886576902,0.7852,3230.1,3229.5,3.09644]
[1736886577074,0.81428011,3230.1,3229.5,3.09644]
[1736886579122,0.81428011,3230.1,3229.4,0.61010178]
[1736886579327,0.81428011,3230.1,3229.4,3.70664178]
[1736886579524,0.81428011,3230.1,3229.4,0.61010178]